bitfinex-derivatives/quotes_SOLF0:USTF0_20260202
["timestamp","ask_amount","ask_price","bid_price","bid_amount"]
[1770006755203,71.78109893,100.99,100.9,147.8205]
[1770006755399,71.78109893,100.99,100.92,138.8683]
[1770006755997,71.78109893,100.99,100.93,8.926]
[1770006756197,8.16274676,101.02,100.93,8.926]
[1770006756397,79.91315848,101.02,100.93,8.926]
[1770006756597,71.75041172,101.02,100.95,138.8272]
[1770006756806,71.75041172,101.02,100.94,138.8415]
[1770006757104,71.75041172,101.02,100.93,138.8528]
[1770006757304,71.75041172,101.02,100.94,8.9254]
[1770006757713,71.75041172,101.02,100.95,4.7448191]
[1770006757912,79.91315848,101.02,100.96,4.7448191]
[1770006758211,71.74111481,100.99,100.89,138.8973]
[1770006758508,71.74111481,100.99,100.91,4.74775277]
[1770006758703,71.74111481,100.99,100.92,4.74775277]
[1770006759300,71.74111481,100.99,100.93,4.74775277]
[1770006759600,71.74111481,100.99,100.94,4.74775277]
[1770006759799,71.74111481,100.99,100.91,8.9278]
[1770006759999,71.74111481,100.97,100.92,4.74676459]
[1770006760205,71.74111481,100.97,100.87,138.9326]
[1770006760407,71.74111481,100.97,100.89,8.9296]
[1770006760911,71.74111481,100.97,100.87,138.9326]
[1770006761105,71.74111481,100.97,100.87,8.9311]
[1770006761409,71.74111481,100.97,100.87,147.868]
[1770006761609,71.74111481,100.97,100.88,147.8508]
[1770006761806,71.74111481,100.97,100.88,138.9203]
[1770006762006,71.74111481,100.97,100.89,138.9096]
[1770006762207,71.74111481,100.97,100.89,8.9296]
[1770006762407,71.74111481,100.97,100.89,138.9097]
[1770006763009,71.74111481,100.97,100.88,138.9203]
[1770006763209,71.74111481,100.97,100.89,138.9104]
[1770006763410,71.74111481,100.97,100.88,138.9203]
[1770006764309,71.74111481,100.97,100.88,8.9304]
[1770006764713,79.90386157,100.97,100.86,147.8725]
[1770006764916,69.4349747,100.96,100.86,8.9323]
[1770006765215,69.4349747,100.94,100.86,8.9323]
[1770006765613,69.4349747,100.94,100.82,139.0005]
[1770006765614,69.4349747,100.92,100.82,139.0005]
[1770006765913,77.59772146,100.91,100.82,139.0005]
[1770006766517,77.59772146,100.91,100.82,8.9355]
[1770006767017,77.59772146,100.91,100.83,8.9349]
[1770006767613,69.4349747,100.91,100.83,147.9279]
[1770006768009,69.4349747,100.91,100.84,147.9101]
[1770006769514,69.46078658,100.94,100.86,138.9516]
[1770006769714,69.46078658,100.97,100.89,138.9062]
[1770006769914,69.46078658,101.0,100.92,8.927]
[1770006770311,69.46078658,101.0,100.9,138.8963]
[1770006770516,69.4429123,100.99,100.9,8.9285]
[1770006770721,77.60565906,100.99,100.9,8.9285]
[1770006771617,77.60565906,100.99,100.9,147.8241]
[1770006771818,69.4429123,100.99,100.91,138.8756]
[1770006772018,69.4429123,100.99,100.92,138.8681]
[1770006772218,69.4429123,100.99,100.93,4.71973013]
[1770006772421,69.45308077,101.02,100.94,4.72019362]
[1770006772621,69.45308077,101.02,100.95,4.72019362]
[1770006772821,69.45308077,101.02,100.96,4.72019362]
[1770006773125,69.45308077,101.0,100.9,138.8956]
[1770006773319,69.45308077,101.0,100.91,4.73130575]
[1770006773516,69.45308077,101.0,100.92,143.59600575]
[1770006773720,69.45308077,101.0,100.93,4.73130575]
[1770006773921,69.45308077,101.0,100.94,4.73130575]
[1770006774120,69.45308077,101.0,100.9,147.8242]
[1770006774322,69.45308077,101.0,100.91,4.7356855]
[1770006774517,69.45308077,101.0,100.92,4.7356855]
[1770006774717,69.45308077,101.0,100.93,4.7356855]
[1770006774919,69.45308077,101.0,100.94,4.7356855]
[1770006775116,69.45308077,101.0,100.95,4.7356855]
[1770006775321,69.45308077,101.0,100.9,147.8242]
[1770006775629,69.45308077,101.0,100.91,4.76414654]
[1770006775917,69.45308077,101.0,100.9,147.8237]
[1770006776114,69.45308077,101.0,100.92,138.8689]
[1770006777325,69.45308077,101.0,100.92,8.9268]
[1770006777526,69.45308077,101.0,100.9,138.8951]
[1770006777715,69.45308077,101.0,100.93,138.855]
[1770006777921,69.43122329,101.03,100.94,8.9252]
[1770006778522,77.72606758,101.02,100.92,8.9267]
[1770006778719,77.72606758,101.02,100.92,147.7948]
[1770006779120,86.64476758,101.02,100.92,8.9267]
[1770006779326,69.56332082,100.99,100.9,147.825]
[1770006779824,69.56332082,100.97,100.88,8.9303]
[1770006780218,69.56332082,100.97,100.89,8.9295]
[1770006780418,69.56332082,100.97,100.89,147.8401]
[1770006780630,138.7613,101.0,100.92,138.8678]
[1770006780631,77.72920858,101.0,100.92,138.8678]
[1770006780828,138.7006,101.05,100.92,138.8678]
[1770006780829,395.4,101.02,100.94,147.7666]
[1770006781128,69.56646182,101.03,100.96,138.8135]
[1770006781522,8.16274676,101.06,100.99,138.7699]
[1770006781523,69.56646182,101.06,100.99,138.7699]
[1770006781923,69.56646182,101.09,101.0,138.7592]
[1770006782222,69.56646182,101.09,101.01,138.745]
[1770006782620,69.56646182,101.09,101.02,138.7314]
[1770006782922,395.4,101.13,101.02,138.7314]
[1770006782923,69.57002165,101.13,101.05,138.6906]
[1770006783432,77.73276841,101.12,101.01,138.7351]
[1770006783625,77.73276841,101.12,101.02,138.7292]
[1770006783830,69.57002165,101.12,101.05,138.6883]
[1770006784219,69.57002165,101.12,101.06,138.6764]
[1770006784924,69.57002165,101.12,101.05,138.6883]
[1770006785121,69.57002165,101.12,101.04,138.6999]
[1770006785324,69.57002165,101.12,101.05,138.6901]
[1770006785519,69.57728761,101.15,101.06,147.5904]
[1770006785828,69.57728761,101.15,101.07,138.6623]
[1770006786025,69.57728761,101.15,101.08,138.6486]
[1770006786225,8.16274676,101.18,101.11,138.6074]
[1770006786226,69.66542831,101.18,101.11,138.6074]
[1770006786530,69.66542831,101.18,101.12,138.5927]
[1770006786924,77.82817507,101.21,101.11,138.6074]
[1770006787329,69.66542831,101.2,101.12,4.25983043]
[1770006787531,69.66542831,101.2,101.1,138.6209]
[1770006787729,69.66542831,101.2,101.11,142.863127]
[1770006788026,69.66542831,101.2,101.12,4.257127]
[1770006788222,69.66542831,101.2,101.11,147.5185]
[1770006788425,69.66542831,101.2,101.12,142.85437348]
[1770006788622,206.28274676,101.23,101.14,138.5657]
[1770006788924,206.28274676,101.23,101.15,4.26067348]
[1770006788925,69.65348365,101.23,101.15,4.26067348]
[1770006789132,69.65348365,101.22,101.12,138.5937]
[1770006789431,69.65348365,101.22,101.13,142.83549762]
[1770006789725,69.65348365,101.22,101.15,138.5517]
[1770006790126,69.65348365,101.22,101.15,147.4585]
[1770006790428,69.65348365,101.22,101.14,138.5667]
[1770006790628,69.65348365,101.22,101.14,147.4745]
[1770006790829,69.65348365,101.22,101.15,138.5531]
[1770006791030,69.65348365,101.22,101.14,147.4745]
[1770006791429,69.65348365,101.22,101.16,138.5382]
[1770006791733,69.64924254,101.24,101.15,147.4588]
[1770006792835,69.64924254,101.24,101.14,138.5667]
[1770006793730,69.64924254,101.24,101.16,138.5377]
[1770006794035,69.66342156,101.26,101.17,138.5191]
[1770006794532,69.66342156,101.26,101.17,147.4241]
[1770006795128,69.66342156,101.26,101.16,138.5377]
[1770006795533,69.66342156,101.26,101.17,138.5217]
[1770006795834,69.66342156,101.26,101.18,138.5121]
[1770006796029,69.66342156,101.26,101.17,138.5217]
[1770006796431,69.66342156,101.26,101.17,147.4269]
[1770006796635,69.65483264,101.29,101.19,138.4971]
[1770006796936,69.65483264,101.29,101.19,147.4004]
[1770006797234,69.65483264,101.29,101.21,138.4654]
[1770006797433,485.90223558,101.32,101.24,138.4285]
[1770006797638,69.65483264,101.32,101.24,147.3274]
[1770006797840,69.65483264,101.35,101.26,138.402]
[1770006798138,69.65483264,101.35,101.25,138.4159]
[1770006798139,69.65483264,101.34,101.25,138.4159]
[1770006798339,69.65483264,101.34,101.27,138.388]
[1770006798934,69.631142,101.37,101.28,147.2682]
[1770006799438,69.631142,101.36,101.26,147.2993]
[1770006800532,69.631142,101.36,101.27,8.8962]
[1770006800739,69.631142,101.36,101.26,138.4024]
[1770006801239,69.631142,101.36,101.26,147.2995]
[1770006801534,69.631142,101.36,101.24,138.4283]
[1770006801535,69.65069702,101.34,101.24,138.4283]
[1770006801838,69.65069702,101.32,101.21,138.4591]
[1770006802139,69.65069702,101.3,101.21,138.4591]
[1770006802335,394.44,101.32,101.24,138.4294]
[1770006802537,69.63348944,101.33,101.24,138.4294]
[1770006803334,69.63348944,101.36,101.27,138.3887]
[1770006803548,69.63348944,101.36,101.25,138.4162]
[1770006803549,69.63348944,101.34,101.25,138.4162]
[1770006804041,69.63348944,101.34,101.23,138.4419]
[1770006805134,8.11935724,101.36,101.27,138.3872]
[1770006805442,69.63868419,101.37,101.29,138.3565]
[1770006805638,69.63868419,101.4,101.33,138.3044]
[1770006805843,146.26205724,101.46,101.35,138.2786]
[1770006806039,8.11935724,101.46,101.36,138.2572]
[1770006806237,549.40405724,101.48,101.37,147.1399]
[1770006806440,8.11935724,101.46,101.35,138.2786]
[1770006806747,8.11935724,101.46,101.35,138.2792]
[1770006806941,402.41935724,101.48,101.37,147.1388]
[1770006807145,146.22375724,101.48,101.37,147.1388]
[1770006807549,16.99775724,101.48,101.37,147.1388]
[1770006807741,76.25642044,101.48,101.38,147.1235]
[1770006808041,76.25642044,101.48,101.38,8.8863]
[1770006808242,68.13474262,101.47,101.36,147.1443]
[1770006808442,76.25409986,101.46,101.36,8.888]
[1770006808644,68.13474262,101.42,101.32,8.8918]
[1770006808944,68.13474262,101.48,101.38,138.2332]
[1770006809138,68.13474262,101.48,101.34,146.40925724]
[1770006809139,76.25409986,101.46,101.35,138.2801]
[1770006809345,76.25409986,101.46,101.36,8.8881]
[1770006809544,68.13474262,101.44,101.34,138.2899]
[1770006809739,68.13474262,101.44,101.33,138.2963]
[1770006809740,76.25409986,101.44,101.33,138.2963]
[1770006810143,76.25409986,101.44,101.34,147.1829]
[1770006810348,68.13474262,101.44,101.35,138.2776]
[1770006810551,68.13474262,101.44,101.34,138.2931]
[1770006810739,76.30382704,101.46,101.36,138.2655]
[1770006811439,76.30382704,101.46,101.37,147.1393]
[1770006811641,68.1844698,101.46,101.38,138.2382]
[1770006812147,68.15554304,101.45,101.34,138.281]
[1770006812350,68.15554304,101.45,101.35,138.2791]
[1770006812744,76.27490028,101.42,101.32,138.3084]
[1770006812945,206.27254304,101.47,101.35,138.268]
[1770006813241,68.15554304,101.44,101.34,8.8899]
[1770006813446,76.27490028,101.44,101.34,147.1828]
[1770006813749,68.15554304,101.44,101.35,147.169]
[1770006814150,138.117,101.47,101.38,138.238]
[1770006814151,68.15255548,101.47,101.38,138.238]
[1770006814449,68.15255548,101.5,101.42,138.1843]
[1770006814645,68.15255548,101.53,101.45,138.1428]
[1770006814944,76.27191272,101.52,101.4,138.2005]
[1770006815146,68.15255548,101.49,101.39,138.2251]
[1770006815449,76.27191272,101.52,101.42,138.1775]
[1770006815644,68.15255548,101.52,101.43,138.1709]
[1770006816249,68.15255548,101.52,101.45,138.1431]
[1770006816744,68.15255548,101.52,101.44,138.1573]
[1770006816952,68.15255548,101.52,101.45,147.0235]
[1770006817347,68.15255548,101.52,101.45,8.8802]
[1770006817651,68.15255548,101.52,101.45,147.0202]
[1770006817842,68.15255548,101.52,101.45,8.8802]
[1770006819444,68.15255548,101.52,101.43,8.8822]
[1770006820450,76.27191272,101.52,101.41,147.0818]
[1770006820651,68.11410338,101.5,101.41,8.8837]
[1770006821150,68.11410338,101.5,101.42,138.1821]
[1770006821346,68.11410338,101.5,101.4,138.2024]
[1770006821541,68.11410338,101.5,101.41,147.0817]
[1770006821746,68.11410338,101.5,101.42,138.1845]
[1770006822144,68.11410338,101.5,101.41,138.1981]
[1770006822546,68.11410338,101.5,101.42,138.1829]
[1770006822850,68.10970871,101.53,101.46,138.126]
[1770006823048,68.10970871,101.53,101.48,138.1029]
[1770006823347,68.10970871,101.56,101.48,138.1029]
[1770006824245,68.11188067,101.53,101.44,147.0377]
[1770006824450,68.11188067,101.53,101.45,138.1421]
[1770006824654,68.11188067,101.56,101.47,138.1158]
[1770006824949,68.11188067,101.56,101.48,8.8777]
[1770006825149,68.11188067,101.56,101.46,138.1301]
[1770006825453,68.11188067,101.56,101.48,146.9799]
[1770006825648,68.11188067,101.56,101.48,138.1025]
[1770006825956,68.11188067,101.56,101.49,138.089]
[1770006826160,68.11188067,101.59,101.51,138.051]
[1770006826347,68.11188067,101.59,101.5,138.071]
[1770006826550,68.11188067,101.59,101.5,146.9467]
[1770006826751,68.11188067,101.59,101.51,138.0577]
[1770006826954,68.11188067,101.59,101.5,138.071]
[1770006827145,68.11188067,101.59,101.5,146.947]
[1770006827349,68.1613259,101.62,101.52,138.0479]
[1770006827550,68.1613259,101.62,101.55,138.007]
[1770006828255,68.1613259,101.62,101.56,137.9922]
[1770006828449,68.1613259,101.62,101.55,138.007]
[1770006828450,68.1613259,101.62,101.52,138.0411]
[1770006828760,68.1613259,101.62,101.54,138.0196]
[1770006828953,68.14461601,101.65,101.57,137.9789]
[1770006829149,68.14461601,101.65,101.56,8.8706]
[1770006829553,68.14461601,101.65,101.57,137.9762]
[1770006829755,68.14461601,101.65,101.54,138.0196]
[1770006829954,76.26397325,101.64,101.52,531.4803]
[1770006830157,76.18279611,101.62,101.51,138.0527]
[1770006830356,68.06343887,101.62,101.53,146.9081]
[1770006830554,68.06343887,101.62,101.54,138.015]
[1770006830755,8.11935724,101.64,101.55,146.8785]
[1770006831352,461.40343887,101.65,101.56,146.8629]
[1770006831554,265.77528532,101.67,101.58,137.9649]
[1770006831747,265.77528532,101.67,101.59,146.8208]
[1770006831948,68.06343887,101.68,101.61,137.9172]
[1770006832153,2.77948636,101.69,101.64,137.8846]
[1770006832361,8.636e-05,101.69,101.64,137.8846]
[1770006832561,8.636e-05,101.69,101.64,8.864]
[1770006832759,67.96996792,101.77,101.69,137.8108]
[1770006832963,67.96996792,101.76,101.64,145.99355724]
[1770006833162,67.96996792,101.76,101.65,137.8677]
[1770006833363,205.72626792,101.74,101.62,146.02065724]
[1770006833662,67.96996792,101.71,101.6,146.04945724]
[1770006833862,67.96996792,101.71,101.62,137.9111]
[1770006834058,137.7154,101.77,101.67,137.8426]
[1770006834059,76.05079457,101.77,101.67,137.8426]
[1770006834271,67.93143733,101.77,101.7,137.8034]
[1770006834558,393.14,101.79,101.7,137.8026]
[1770006834759,393.14,101.79,101.69,137.8153]
[1770006834961,145.81955724,101.78,101.65,137.8625]
[1770006835160,67.93143733,101.73,101.61,531.0638]
[1770006835362,213.83189457,101.72,101.6,137.9273]
[1770006835665,76.05079457,101.7,101.59,137.9523]
[1770006835963,76.05079457,101.7,101.58,137.9625]
[1770006835964,205.75013733,101.69,101.58,146.8311]
[1770006836163,205.75013733,101.69,101.56,531.0252]
[1770006836164,76.06948468,101.66,101.56,531.0252]
[1770006836364,67.95012744,101.66,101.58,137.9662]
[1770006837464,76.06948468,101.66,101.55,138.0035]
[1770006837865,76.06948468,101.66,101.55,146.8753]
[1770006837866,67.95012744,101.65,101.55,146.8753]
[1770006838264,205.82612744,101.65,101.53,138.0277]
[1770006838466,76.22371245,101.64,101.54,138.0178]
[1770006838860,68.10435521,101.64,101.56,137.9929]
[1770006839169,68.10435521,101.64,101.57,137.9791]
[1770006839369,8.8609,101.68,101.6,137.9374]
[1770006839370,68.10435521,101.68,101.6,137.9374]
[1770006839766,68.10435521,101.68,101.62,137.9115]
[1770006839973,76.22371245,101.71,101.61,137.9259]
[1770006840169,68.11500677,101.68,101.59,137.9515]
[1770006840370,68.11500677,101.68,101.61,137.9229]
[1770006840671,76.23436401,101.71,101.6,137.9371]
[1770006840874,68.11500677,101.66,101.56,137.9926]
[1770006841275,8.11935724,101.63,101.54,138.02]
[1770006841477,68.11500677,101.64,101.55,138.007]
[1770006841680,68.11500677,101.64,101.56,137.993]
[1770006841877,68.11500677,101.64,101.57,137.9795]
[1770006842077,68.11500677,101.64,101.54,138.02]
[1770006842274,68.11500677,101.64,101.57,137.9794]
[1770006842474,76.2319712,101.67,101.58,137.9666]
[1770006843169,68.11261396,101.64,101.55,138.0069]
[1770006843372,76.2319712,101.59,101.48,138.0938]
[1770006843577,76.2319712,101.59,101.5,138.0745]
[1770006843782,76.2319712,101.59,101.48,138.0938]
[1770006843783,76.2319712,101.57,101.48,8.8779]
[1770006843972,8.11935724,101.55,101.48,138.0996]
[1770006844168,68.11261396,101.57,101.5,138.0755]
[1770006844373,68.11261396,101.57,101.51,138.0609]
[1770006844580,8.11935724,101.59,101.52,138.0461]
[1770006844781,76.20436511,101.59,101.5,138.0757]
[1770006845074,8.11935724,101.57,101.49,146.966]
[1770006845280,76.20436511,101.55,101.47,138.1163]
[1770006845478,76.20436511,101.55,101.48,138.1001]
[1770006845674,8.11935724,101.57,101.49,138.0876]
[1770006845977,8.11935724,101.57,101.5,138.0754]
[1770006846281,68.08500787,101.59,101.53,138.0342]
[1770006846574,68.08500787,101.59,101.51,138.0581]
[1770006846771,76.20436511,101.59,101.48,138.0934]
[1770006846973,76.20436511,101.59,101.49,138.089]
[1770006847181,76.20436511,101.59,101.5,138.0745]
[1770006847382,76.20436511,101.59,101.51,138.0605]
[1770006847875,76.13523319,101.57,101.46,138.1187]
[1770006848080,8.11935724,101.55,101.48,138.1027]
[1770006848278,76.13523319,101.55,101.46,146.998]
[1770006848683,76.13523319,101.55,101.47,138.1154]
[1770006848882,76.13523319,101.55,101.48,138.1016]
[1770006849080,76.13523319,101.55,101.46,138.1187]
[1770006849478,76.13523319,101.55,101.47,138.1114]
[1770006849781,76.13523319,101.59,101.49,138.087]
[1770006849990,76.13523319,101.59,101.5,146.9493]
[1770006850477,76.13523319,101.59,101.51,146.937]
[1770006850684,76.13523319,101.59,101.5,138.0734]
[1770006851081,76.13523319,101.59,101.48,138.0985]
[1770006851384,76.13523319,101.59,101.46,531.0974]
[1770006851385,76.13191681,101.55,101.46,138.1174]
[1770006851584,76.13191681,101.55,101.45,138.1335]
[1770006851885,76.13191681,101.53,101.43,138.1627]
[1770006852082,76.13191681,101.51,101.42,138.1844]
[1770006852482,76.13191681,101.51,101.4,138.2049]
[1770006852679,8.11935724,101.49,101.4,138.2107]
[1770006853079,8.11935724,101.49,101.41,147.0795]
[1770006853390,68.00801746,101.5,101.41,138.1958]
[1770006853584,68.00801746,101.5,101.42,138.1837]
[1770006853785,8.11935724,101.49,101.39,138.2138]
[1770006853986,76.1273747,101.49,101.39,138.2138]
[1770006854185,76.1273747,101.49,101.37,138.2407]
[1770006854186,76.1061513,101.47,101.37,138.2407]
[1770006854387,76.1061513,101.47,101.39,138.2252]
[1770006854580,8.11935724,101.49,101.39,138.2252]
[1770006854782,8.11935724,101.49,101.4,147.0953]
[1770006854986,8.11935724,101.49,101.4,8.8846]
[1770006855586,76.1061513,101.49,101.4,8.8846]
[1770006855888,76.1061513,101.47,101.38,147.1245]
[1770006856089,67.98679406,101.47,101.4,138.2109]
[1770006856292,67.98679406,101.47,101.38,138.2382]
[1770006856485,67.98679406,101.47,101.4,138.2104]
[1770006856789,76.1061513,101.47,101.38,8.8863]
[1770006856990,76.1061513,101.47,101.39,138.2242]
[1770006857388,67.98679406,101.47,101.39,138.2242]
[1770006857588,76.1061513,101.47,101.35,138.2675]
[1770006857888,76.1057951,101.45,101.35,138.2675]
[1770006858081,76.1057951,101.45,101.35,147.1564]
[1770006858395,76.07587524,101.44,101.35,8.8889]
[1770006858592,67.98321952,101.44,101.36,147.1543]
[1770006858988,67.98321952,101.44,101.36,8.8882]
[1770006858989,76.07587524,101.44,101.36,8.8882]
[1770006859589,76.07587524,101.44,101.34,8.8898]
[1770006859791,67.98321952,101.43,101.33,138.2952]
[1770006860090,76.07177348,101.42,101.32,8.8916]
[1770006860487,76.07177348,101.42,101.32,147.2074]
[1770006860690,76.07177348,101.42,101.33,138.3072]
[1770006860987,67.97911776,101.42,101.34,147.1817]
[1770006862690,67.97911776,101.42,101.33,138.3072]
[1770006862691,76.07177348,101.42,101.32,147.2075]
[1770006863086,76.07177348,101.42,101.32,138.3158]
[1770006863282,76.07177348,101.42,101.34,138.2936]
[1770006863482,76.07177348,101.42,101.32,138.3158]
[1770006863893,76.07177348,101.42,101.32,147.2074]
[1770006864088,76.07177348,101.42,101.34,138.2937]
[1770006864392,67.97911776,101.42,101.35,138.2778]
[1770006864693,67.97911776,101.42,101.33,138.3067]
[1770006865486,8.09265572,101.44,101.35,138.2757]
[1770006865690,76.12456078,101.44,101.35,138.2757]
[1770006865892,76.12456078,101.44,101.34,138.2893]
[1770006866086,76.12456078,101.44,101.35,8.889]
[1770006866682,76.12456078,101.44,101.35,147.1671]
[1770006866887,68.03190506,101.44,101.36,147.1536]
[1770006867082,68.03190506,101.44,101.36,147.154]
[1770006867288,68.03190506,101.44,101.37,8.8873]
[1770006868094,68.03190506,101.44,101.35,147.1669]
[1770006868293,68.03190506,101.44,101.35,138.2781]
[1770006868485,68.03190506,101.44,101.36,138.2649]
[1770006868691,68.03190506,101.44,101.37,8.8871]
[1770006868894,68.03190506,101.44,101.35,138.2781]
[1770006869197,76.12456078,101.44,101.34,138.2893]
[1770006869489,531.6171,101.47,101.38,8.8864]
[1770006869490,68.03328248,101.47,101.38,8.8864]
[1770006869798,76.1259382,101.47,101.36,138.2664]
[1770006871398,85.0050382,101.47,101.37,8.8874]
[1770006871692,68.03777908,101.44,101.35,138.2797]
[1770006871894,68.03777908,101.44,101.36,8.8881]
[1770006872297,68.03777908,101.44,101.36,147.1538]
[1770006872689,68.03777908,101.44,101.36,8.8881]
[1770006873296,68.03777908,101.44,101.36,147.1541]
[1770006873895,68.03777908,101.44,101.37,8.8873]
[1770006874794,68.03777908,101.44,101.35,8.8887]
[1770006874993,68.03777908,101.44,101.33,138.2946]
[1770006874994,68.1014235,101.4,101.31,138.3218]
[1770006875501,68.1014235,101.38,101.29,138.3522]
[1770006875695,68.1014235,101.36,101.26,138.3902]
[1770006875892,68.1014235,101.36,101.28,138.3752]
[1770006876094,68.1014235,101.36,101.29,8.8944]
[1770006876293,76.21251655,101.35,101.25,138.4089]
[1770006876599,76.21251655,101.35,101.26,138.4009]
[1770006876900,76.21251655,101.35,101.27,8.896]
[1770006877100,8.09265572,101.37,101.28,138.3691]
[1770006877301,76.21251655,101.37,101.28,138.3691]
[1770006877502,76.21251655,101.37,101.29,138.3619]
[1770006877698,68.11986083,101.37,101.28,138.3691]
[1770006878097,68.11986083,101.37,101.28,147.264]
[1770006878299,68.11986083,101.37,101.28,138.3691]
[1770006878499,68.11986083,101.37,101.27,138.3862]
[1770006878698,76.20226359,101.36,101.27,138.3862]
[1770006878903,76.20226359,101.36,101.27,8.8957]
[1770006879202,76.20226359,101.36,101.27,138.3884]
[1770006879803,76.20226359,101.36,101.28,8.8952]
[1770006880905,76.20226359,101.36,101.28,138.3756]
[1770006881602,68.10960787,101.36,101.29,8.8944]
[1770006882104,68.10960787,101.36,101.29,138.361]
[1770006882498,8.09265572,101.38,101.29,138.361]
[1770006882499,68.22205669,101.38,101.3,8.8936]
[1770006882701,68.22205669,101.38,101.3,138.3457]
[1770006883001,68.22205669,101.38,101.31,8.8927]
[1770006883300,68.22205669,101.38,101.28,138.3756]
[1770006883301,76.31471241,101.38,101.28,138.3756]
[1770006883804,76.31471241,101.38,101.3,138.348]
[1770006884000,68.22205669,101.38,101.28,138.3756]
[1770006884303,76.31471241,101.38,101.3,138.3462]
[1770006884503,68.22205669,101.38,101.3,138.3462]
[1770006884896,68.22205669,101.38,101.31,8.8927]
[1770006885099,68.22205669,101.38,101.29,138.359]
[1770006885298,68.22205669,101.38,101.28,138.3756]
[1770006885299,76.31471241,101.38,101.28,138.3756]
[1770006886406,11.56142154,101.34,101.25,3.59103152]
[1770006886703,3.44960896,101.37,101.25,3.59103152]
[1770006886898,3.44960896,101.37,101.27,3.44937033]
[1770006887299,3.44960896,101.37,101.29,12.34367033]
[1770006887704,3.44960896,101.36,101.26,141.84357033]
[1770006888003,11.54226468,101.35,101.26,3.44937033]
[1770006888205,3.44960896,101.34,101.26,3.44937033]
[1770006888709,12.34020896,101.34,101.26,3.44937033]
[1770006889103,3.44960896,101.33,101.26,3.44937033]
[1770006889409,11.54226468,101.33,101.26,3.44937033]
[1770006889611,3.44960896,101.33,101.26,3.44937033]
[1770006890212,3.44960896,101.32,101.23,3.44937033]
[1770006890702,3.44960896,101.32,101.23,12.34867033]
[1770006891714,3.44960896,101.31,101.23,3.44937033]
[1770006891906,3.44960896,101.3,101.23,3.44937033]
[1770006892210,12.34360896,101.3,101.21,3.44937033]
[1770006892507,3.44960896,101.29,101.21,3.44937033]
[1770006892708,11.54226468,101.29,101.21,3.44937033]
[1770006893604,3.44960896,101.32,101.24,141.87727033]
[1770006893802,3.44960896,101.32,101.25,3.44937033]
[1770006894705,3.44960896,101.32,101.25,12.34737033]
[1770006895413,3.44960896,101.35,101.27,3.44937033]
[1770006896412,3.44960896,101.35,101.27,12.34547033]
[1770006897007,3.44960896,101.35,101.27,3.44937033]
[1770006898407,3.44960896,101.35,101.24,3.44937033]
[1770006898408,3.44960896,101.34,101.24,3.44937033]
[1770006898710,3.44960896,101.34,101.25,3.44937033]
[1770006900002,3.44960896,101.34,101.25,141.86447033]
[1770006900605,393.98,101.36,101.27,3.44937033]
[1770006900911,3.44960896,101.37,101.3,3.44937033]
[1770006901100,8.09265572,101.39,101.31,3.44937033]
[1770006901308,267.02938431,101.43,101.35,3.44937033]
[1770006901808,3.44960896,101.46,101.37,3.44937033]
[1770006902003,3.44960896,101.45,101.37,3.44937033]
[1770006902710,3.44960896,101.47,101.38,3.44937033]
[1770006902904,3.44960896,101.47,101.39,141.67457033]
[1770006903208,3.44960896,101.47,101.39,12.33507033]
[1770006903513,3.44960896,101.5,101.41,3.44937033]
[1770006903708,3.44960896,101.5,101.41,141.64387033]
[1770006904009,3.44960896,101.5,101.42,3.44937033]
[1770006904210,11.54226468,101.49,101.39,3.44937033]
[1770006904407,11.54226468,101.49,101.4,3.44937033]
[1770006904611,3.44960896,101.48,101.4,3.44937033]
[1770006905006,11.54226468,101.47,101.38,3.44937033]
[1770006905716,3.44960896,101.47,101.38,3.44937033]
[1770006906010,3.44960896,101.45,101.35,141.72867033]
[1770006906213,3.44960896,101.45,101.35,12.33827033]
[1770006906615,3.44960896,101.45,101.37,3.44937033]
[1770006907206,3.44960896,101.45,101.37,141.70157033]
[1770006907508,3.44960896,101.45,101.37,3.44937033]
[1770006908411,11.81520694,101.51,101.41,138.1972]
[1770006908606,3.72255122,101.51,101.42,3.53646955]
[1770006908804,3.72255122,101.48,101.39,3.53646955]
[1770006909416,3.72255122,101.46,101.36,3.53646955]
[1770006909612,146.20965572,101.47,101.37,3.53646955]
[1770006909613,3.72255122,101.45,101.37,3.53646955]
[1770006910114,3.72255122,101.45,101.37,141.78816955]
[1770006910310,3.72255122,101.48,101.4,3.53646955]